fUST/lending_fUST_20250328
["ID","MTS","AMOUNT","RATE_DAILY","PERIOD"]
[356770480,1743148245507,-500.0,0.00034269,10]
[356770481,1743148245517,-3429.33,0.00034269,10]
[356770482,1743148245527,-640.84,0.00034269,10]
[356770483,1743148245538,-1138.45,0.00034269,10]
[356770484,1743148245547,-1653.51,0.00034269,10]
[356770485,1743148245557,-500.0,0.00034269,10]
[356770486,1743148245569,-507.89,0.00034269,10]
[356770487,1743148245579,-500.0,0.00034269,10]
[356770488,1743148245588,-3523.28,0.00034269,10]
[356770490,1743148245599,-516.79060778,0.00034269,10]
[356770491,1743148245608,-1157.78,0.00034269,10]
[356770492,1743148245618,-602.02,0.00034269,10]
[356770493,1743148245627,-500.0,0.00034269,10]
[356770495,1743148245637,-500.0,0.00034269,10]
[356770496,1743148245646,-500.0,0.00034269,10]
[356770497,1743148245656,-500.0,0.00034269,10]
[356770498,1743148245666,-554.74,0.00034269,10]
[356770499,1743148245676,-500.0,0.00034269,10]
[356770500,1743148245685,-500.0,0.00034269,10]
[356770502,1743148245695,-538.90501796,0.00034269,10]
[356770503,1743148245704,-500.0,0.00034269,10]
[356770504,1743148245714,-1550.33,0.00034269,10]
[356770505,1743148245723,-500.0,0.00034269,2]
[356770506,1743148245734,-500.0,0.00034269,10]
[356770507,1743148245744,-1834.29,0.00034269,10]
[356770508,1743148245753,-517.73,0.00034269,10]
[356770509,1743148245763,-500.0,0.00034269,10]
[356770510,1743148245772,-500.0,0.00034269,10]
[356770511,1743148245782,-500.0,0.00034269,10]
[356770513,1743148245792,-547.89,0.00034269,10]
[356770515,1743148245801,-3897.75,0.00034269,10]
[356770517,1743148245810,-500.0,0.00034269,10]
[356770519,1743148245821,-500.0,0.00034269,10]
[356770521,1743148245830,-500.0,0.00034269,10]
[356770523,1743148245839,-758.24,0.00034269,10]
[356770525,1743148245849,-771.62,0.00034269,10]
[356770527,1743148245859,-500.0,0.00034269,10]
[356770529,1743148245869,-506.91682296,0.00034269,10]
[356770530,1743148245879,-177.17842988,0.00034269,10]
[356770531,1743148245891,-1985.7,0.00034269,10]
[356770532,1743148245900,-638.26396438,0.00034269,10]
[356770533,1743148245909,-500.0,0.00034269,10]
[356770534,1743148245918,-527.68,0.00034269,10]
[356770535,1743148245928,-568.05,0.00034269,10]
[356770536,1743148245938,-500.0,0.00034269,10]
[356770537,1743148245948,-246.30579944,0.00034269,10]
[356770538,1743148245957,-500.0,0.00034269,10]
[356770539,1743148245967,-500.0,0.00034269,10]
[356770540,1743148245977,-789.42,0.00034269,10]
[356770541,1743148245987,-500.0,0.00034269,10]
[356770542,1743148245997,-500.0,0.00034269,10]
[356770543,1743148246007,-500.0,0.00034269,10]
[356770544,1743148246016,-500.0,0.00034269,10]
[356770545,1743148246025,-500.0,0.00034269,10]
[356770546,1743148246034,-859.96,0.00034269,10]
[356770547,1743148246043,-500.0,0.00034269,10]
[356770548,1743148246052,-500.0,0.00034269,10]
[356770549,1743148246063,-500.0,0.00034269,10]
[356770550,1743148246073,-508.78,0.00034269,7]
[356770551,1743148246083,-548.44,0.00034269,10]
[356770552,1743148246093,-1002.39,0.00034269,10]
[356770554,1743148246103,-846.65,0.00034269,10]
[356770556,1743148246113,-2152.68,0.00034269,10]
[356770557,1743148246122,-3044.48,0.00034269,10]
[356770558,1743148246131,-500.0,0.00034269,10]
[356770559,1743148246140,-1432.52,0.00034269,10]
[356770560,1743148246151,-500.0,0.00034269,10]
[356770561,1743148246161,-759.52,0.00034269,10]
[356770562,1743148246170,-500.0,0.00034269,10]
[356770563,1743148246181,-712.48,0.00034269,10]
[356770564,1743148246191,-1860.67,0.00034269,10]
[356770565,1743148246202,-2051.44,0.00034269,10]
[356770566,1743148246212,-500.0,0.00034269,10]
[356770567,1743148246222,-500.0,0.00034269,10]
[356770568,1743148246231,-1816.73,0.00034269,10]
[356770569,1743148246243,-500.0,0.00034269,10]
[356770571,1743148246252,-500.0,0.00034269,10]
[356770573,1743148246261,-500.0,0.00034269,10]
[356770574,1743148246271,-984.43,0.00034269,10]
[356770575,1743148246280,-500.0,0.00034269,10]
[356770576,1743148246290,-2218.15,0.00034269,10]
[356770578,1743148246299,-500.0,0.00034269,10]
[356770580,1743148246308,-500.0,0.00034269,10]
[356770582,1743148246319,-500.0,0.00034269,10]
[356770584,1743148246329,-500.0,0.00034269,10]
[356770586,1743148246338,-1685.1,0.00034269,10]
[356770588,1743148246347,-500.0,0.00034269,10]
[356770589,1743148246357,-527.90574235,0.00034269,10]
[356770590,1743148246366,-1447.45,0.00034269,10]
[356770591,1743148246375,-500.0,0.00034269,10]
[356770592,1743148246384,-500.0,0.00034269,10]
[356770593,1743148246393,-500.0,0.00034269,10]
[356770594,1743148246403,-500.0,0.00034269,10]
[356770595,1743148246412,-500.0,0.00034269,10]
[356770596,1743148246421,-907.76,0.00034269,10]
[356770597,1743148246430,-500.0,0.00034269,10]
[356770598,1743148246439,-500.0,0.00034269,10]
[356770599,1743148246449,-500.0,0.00034269,10]
[356770600,1743148246459,-500.0,0.00034269,10]
[356770601,1743148246469,-500.0,0.00034269,10]
[356770602,1743148246478,-500.0,0.00034269,10]
[356770603,1743148246488,-500.0,0.00034269,10]
[356770604,1743148246497,-500.0,0.00034269,10]
[356770605,1743148246506,-500.0,0.00034269,10]
[356770606,1743148246516,-510.0639554,0.00034273,5]
[356770607,1743148246525,-500.0,0.00034273,5]
[356770608,1743148246534,-500.0,0.00034273,5]
[356770609,1743148246544,-500.0,0.00034273,5]
[356770610,1743148246554,-505.75529594,0.00034273,5]
[356770611,1743148246563,-503.57853547,0.00034273,5]
[356770612,1743148246573,-500.0,0.00034273,5]
[356770613,1743148246583,-500.0,0.00034273,5]
[356770614,1743148246592,-500.0,0.00034273,5]
[356770615,1743148246602,-500.0,0.00034273,5]
[356770616,1743148246611,-500.0,0.00034273,5]
[356770617,1743148246621,-500.0,0.00034273,5]
[356770618,1743148246631,-500.0,0.00034273,5]
[356770619,1743148246640,-500.98155824,0.00034273,5]
[356770620,1743148246651,-502.0474455,0.00034273,5]
[356770621,1743148246660,-500.0,0.00034273,5]
[356770622,1743148246669,-500.0,0.00034273,5]
[356770623,1743148246681,-500.0,0.00034273,5]
[356770624,1743148246692,-265.718781,0.00034273,10]
[356770625,1743148246701,-500.0,0.00034273,10]
[356770626,1743148246710,-500.0,0.00034273,10]
[356770627,1743148246720,-500.0,0.00034273,10]
[356770628,1743148246731,-503.50485424,0.00034273,10]
[356770629,1743148246741,-500.0,0.00034273,10]
[356770630,1743148246750,-324.80995702,0.00034273,10]
[356770631,1743148246760,-500.0,0.00034273,10]
[356770632,1743148246769,-500.0,0.00034273,10]
[356770633,1743148246778,-337.58571246,0.00034273,10]
[356770634,1743148246788,-500.0,0.00034273,10]
[356770635,1743148246797,-500.0,0.00034273,10]
[356770636,1743148246806,-500.0,0.00034273,10]
[356770637,1743148246817,-500.0,0.00034273,10]
[356770638,1743148246826,-500.0,0.00034273,10]
[356770639,1743148246835,-500.0,0.00034273,10]
[356770640,1743148246844,-500.0,0.00034273,10]
[356770641,1743148246853,-579.87459836,0.00034273,10]
[356770642,1743148246862,-500.0,0.00034273,10]
[356770643,1743148246872,-500.0,0.00034273,10]
[356770644,1743148246881,-500.0,0.00034273,10]
[356770645,1743148246890,-500.0,0.00034273,10]
[356770646,1743148246900,-442.03505894,0.00034273,10]
[356770647,1743148246909,-500.0,0.00034273,10]
[356770648,1743148246918,-500.0,0.00034273,10]
[356770649,1743148246927,-500.0,0.00034273,10]
[356770650,1743148246936,-500.0,0.00034273,10]
[356770651,1743148246945,-500.0,0.00034273,10]
[356770652,1743148246954,-500.0,0.00034273,10]
[356770653,1743148246963,-206.62933306,0.000343,11]
[356770654,1743148246971,-187.78006525,0.00034304,2]
[356770655,1743148246980,-405.999496,0.00034352,4]
[356770656,1743148246989,-194.72792766,0.00034359,2]
[356770657,1743148246998,-201.93286099,0.00034414,2]
[356770658,1743148247008,-209.40437684,0.00034469,2]
[356770659,1743148247017,-569.46,0.00034517,10]
[356770660,1743148247026,-500.0,0.00034517,10]
[356770661,1743148247036,-500.0,0.00034517,10]
[356770662,1743148247045,-533.41,0.00034517,10]
[356770663,1743148247054,-500.0,0.00034517,10]
[356770664,1743148247064,-500.0,0.00034517,10]
[356770665,1743148247074,-500.0,0.00034517,10]
[356770666,1743148247083,-1561.15,0.00034517,10]
[356770667,1743148247092,-500.0,0.00034517,10]
[356770668,1743148247101,-500.0,0.00034517,10]
[356770669,1743148247110,-552.52,0.00034517,10]
[356770670,1743148247120,-853.64,0.00034517,10]
[356770671,1743148247129,-500.0,0.00034517,10]
[356770672,1743148247265,-500.0,0.00034517,10]
[356770673,1743148247275,-265.67962686,0.00034517,10]
[356770674,1743148247285,-500.0,0.00034517,10]
[356770675,1743148247295,-660.61,0.00034517,10]
[356770676,1743148247304,-500.0,0.00034517,10]
[356770677,1743148247314,-500.0,0.00034517,10]
[356770678,1743148247325,-500.0,0.00034517,10]
[356770679,1743148247336,-500.0,0.00034517,10]
[356770680,1743148247346,-500.0,0.00034517,10]
[356770681,1743148247355,-507.99,0.00034517,10]
[356770682,1743148247365,-500.0,0.00034517,10]
[356770683,1743148247374,-948.36,0.00034517,10]
[356770684,1743148247384,-278.36,0.00034517,7]
[356770685,1743148247394,-500.0,0.00034517,10]
[356770686,1743148247404,-500.0,0.00034517,10]
[356770687,1743148247413,-651.57,0.00034517,10]
[356770688,1743148247423,-723.24,0.00034517,10]
[356770689,1743148247432,-1080.58,0.00034517,10]
[356770690,1743148247442,-587.67,0.00034517,10]
[356770691,1743148247451,-650.28,0.00034517,10]
[356770692,1743148247460,-500.0,0.00034517,10]
[356770693,1743148247470,-500.0,0.00034517,10]
[356770694,1743148247480,-500.0,0.00034517,10]
[356770695,1743148247490,-1052.08,0.00034517,10]
[356770696,1743148247499,-500.0,0.00034517,10]
[356770697,1743148247509,-500.0,0.00034517,10]
[356770698,1743148247519,-510.69,0.00034517,10]
[356770699,1743148247528,-500.0,0.00034517,10]
[356770700,1743148247538,-612.72,0.00034517,10]
[356770701,1743148247547,-500.0,0.00034517,10]
[356770702,1743148247558,-642.15,0.00034517,10]
[356770703,1743148247569,-500.0,0.00034517,10]
[356770704,1743148247579,-500.0,0.00034517,10]
[356770705,1743148247588,-500.0,0.00034517,10]
[356770706,1743148247598,-628.85,0.00034517,10]
[356770707,1743148247608,-500.0,0.00034517,10]
[356770708,1743148247617,-500.0,0.00034517,10]
[356770709,1743148247627,-898.08,0.00034517,10]
[356770710,1743148247637,-26821.63,0.00034517,10]
[356770711,1743148247647,-473.16384322,0.00034517,10]
[356770712,1743148247657,-2100.07,0.00034517,10]
[356770713,1743148247667,-500.0,0.00034517,10]
[356770714,1743148247680,-500.0,0.00034517,10]
[356770715,1743148247689,-1815.25,0.00034517,10]
[356770716,1743148247699,-641.84,0.00034517,10]
[356770717,1743148247708,-500.0,0.00034517,10]
[356770718,1743148247718,-7388.84,0.00034517,10]
[356770719,1743148247728,-500.0,0.00034517,10]
[356770720,1743148247737,-500.0,0.00034517,10]
[356770721,1743148247747,-500.0,0.00034517,10]
[356770722,1743148247756,-500.0,0.00034517,10]
[356770723,1743148247765,-500.0,0.00034517,10]
[356770724,1743148247775,-500.0,0.00034517,10]
[356770725,1743148247784,-500.0,0.00034517,10]
[356770726,1743148247794,-508.48,0.00034517,10]
[356770727,1743148247804,-500.0,0.00034517,10]
[356770728,1743148247814,-14816.56,0.00034517,10]
[356770729,1743148247824,-500.0,0.00034517,10]
[356770730,1743148247833,-747.38,0.00034517,10]
[356770731,1743148247843,-2079.53,0.00034517,10]
[356770732,1743148247854,-954.66,0.00034517,10]
[356770733,1743148247865,-2397.66,0.00034517,10]
[356770734,1743148247881,-500.0,0.00034517,10]
[356770735,1743148247890,-544.72075133,0.00034517,10]
[356770736,1743148247899,-928.13,0.00034517,10]
[356770737,1743148247909,-1209.98,0.00034517,10]
[356770738,1743148247919,-3271.65,0.00034517,10]
[356770739,1743148247928,-500.0,0.00034517,7]
[356770740,1743148247938,-1416.24,0.00034517,10]
[356770741,1743148247947,-500.0,0.00034517,10]
[356770742,1743148247957,-992.81,0.00034517,10]
[356770743,1743148247966,-7429.72,0.00034517,10]
[356770744,1743148247976,-500.0,0.00034517,10]
[356770745,1743148247985,-11156.16,0.00034517,10]
[356770746,1743148247994,-500.0,0.00034517,10]
[356770747,1743148248003,-570.43960705,0.00034517,10]
[356770748,1743148248013,-500.0,0.00034517,10]
[356770749,1743148248022,-500.0,0.00034517,10]
[356770750,1743148248032,-500.0,0.00034517,10]
[356770751,1743148248042,-329.73519058,0.00034517,10]
[356770752,1743148248051,-540.86446373,0.00034517,10]
[356770753,1743148248060,-871.61,0.00034517,10]
[356770754,1743148248071,-500.0,0.00034517,10]
[356770755,1743148248081,-500.0,0.00034517,10]
[356770756,1743148248091,-584.58,0.00034517,10]
[356770757,1743148248105,-5064.13,0.00034517,10]
[356770758,1743148248120,-500.0,0.00034517,10]
[356770759,1743148248130,-532.55206823,0.00034517,10]
[356770760,1743148248140,-3243.51,0.00034517,10]
[356770761,1743148248149,-1403.41,0.00034517,10]
[356770762,1743148248159,-500.0,0.00034517,10]
[356770763,1743148248169,-500.0,0.00034517,10]
[356770764,1743148248178,-500.0,0.00034517,10]
[356770765,1743148248187,-1090.03,0.00034517,10]
[356770766,1743148248197,-500.0,0.00034517,10]
[356770767,1743148248207,-500.0,0.00034518,10]
[356770768,1743148248216,-6730.68,0.00034518,10]
[356770769,1743148248226,-13435.43,0.00034518,10]
[356770770,1743148248235,-8800.74,0.00034518,10]
[356770771,1743148248247,-4512.03,0.00034518,10]
[356770772,1743148248258,-500.0,0.00034518,10]
[356770773,1743148248268,-500.0,0.00034518,10]
[356770774,1743148248277,-4357.6,0.00034518,10]
[356770775,1743148248288,-500.0,0.00034518,10]
[356770776,1743148248298,-2503.66,0.00034518,10]
[356770777,1743148248307,-1163.76,0.00034518,10]
[356770778,1743148248320,-23111.16,0.00034518,10]
[356770779,1743148248332,-3238.32,0.00034518,10]
[356770780,1743148248342,-500.0,0.00034518,10]
[356770781,1743148248352,-745.24,0.00034518,10]
[356770782,1743148248362,-1350.11,0.00034518,10]
[356770783,1743148248372,-858.52,0.00034518,10]
[356770784,1743148248382,-5841.36,0.00034518,10]
[356770785,1743148248392,-1201.3,0.00034518,10]
[356770786,1743148248402,-5843.07,0.00034518,10]
[356770787,1743148248412,-5982.42,0.00034518,10]
[356770788,1743148248422,-697.17,0.00034518,10]
[356770789,1743148248431,-3020.36,0.00034518,10]
[356770790,1743148248441,-1537.84,0.00034518,10]
[356770791,1743148248451,-5768.18,0.00034518,10]
[356770792,1743148248461,-534.55,0.00034518,10]
[356770793,1743148248470,-684.81,0.00034518,10]
[356770794,1743148248480,-1291.13,0.00034518,10]
[356770795,1743148248490,-2464.48,0.00034518,10]
[356770796,1743148248499,-930.48,0.00034518,10]
[356770797,1743148248509,-854.11,0.00034518,10]
[356770798,1743148248518,-2339.88,0.00034518,10]
[356770799,1743148248527,-500.0,0.00034518,10]
[356770800,1743148248537,-500.0,0.00034518,10]
[356770801,1743148248547,-3861.6,0.00034518,10]
[356770802,1743148248556,-500.0,0.00034518,10]
[356770803,1743148248567,-2207.35,0.00034518,10]
[356770804,1743148248577,-865.63,0.0003452,10]
[356770805,1743148248587,-500.0,0.0003452,10]
[356770806,1743148248597,-1150.73,0.0003452,10]
[356770807,1743148248609,-500.0,0.0003452,10]
[356770808,1743148248619,-500.0,0.0003452,10]
[356770809,1743148248628,-500.0,0.0003452,10]
[356770810,1743148248638,-500.0,0.0003452,10]
[356770811,1743148248648,-500.0,0.0003452,10]
[356770812,1743148248658,-1720.12,0.0003452,10]
[356770813,1743148248668,-500.0,0.0003452,10]
[356770814,1743148248677,-500.0,0.0003452,10]
[356770815,1743148248687,-500.0,0.0003452,10]
[356770816,1743148248696,-702.85,0.0003452,10]
[356770817,1743148248706,-500.0,0.0003452,10]
[356770818,1743148248715,-500.0,0.0003452,10]
[356770819,1743148248725,-1022.49,0.0003452,10]
[356770820,1743148248736,-1380.03,0.0003452,10]
[356770821,1743148248745,-509.34,0.0003452,10]
[356770822,1743148248755,-511.20027124,0.0003452,10]
[356770823,1743148248764,-500.0,0.0003452,10]
[356770824,1743148248774,-1171.39,0.0003452,10]
[356770825,1743148248783,-500.0,0.0003452,10]
[356770826,1743148248793,-1105.92,0.0003452,10]
[356770827,1743148248802,-1258.07,0.0003452,10]
[356770828,1743148248811,-528.45,0.0003452,10]
[356770829,1743148248822,-500.0,0.0003452,10]
[356770830,1743148248831,-500.0,0.0003452,10]
[356770831,1743148248840,-1191.53,0.0003452,10]
[356770832,1743148248849,-1773.0,0.0003452,10]
[356770833,1743148248859,-500.0,0.0003452,10]
[356770834,1743148248868,-500.0,0.0003452,10]
[356770835,1743148248877,-630.28,0.0003452,10]
[356770836,1743148248887,-879.44,0.0003452,10]
[356770837,1743148248896,-1792.0,0.0003452,10]
[356770838,1743148248906,-1683.92,0.0003452,10]
[356770839,1743148248915,-500.0,0.0003452,10]
[356770840,1743148248924,-2814.94,0.0003452,10]
[356770841,1743148248934,-1035.81,0.0003452,10]
[356770842,1743148248943,-794.04,0.0003452,10]
[356770843,1743148248953,-500.0,0.0003452,10]
[356770844,1743148248963,-610.4546864,0.0003452,10]
[356770845,1743148248972,-521.29,0.0003452,10]
[356770846,1743148248981,-500.0,0.0003452,10]
[356770847,1743148248991,-500.0,0.0003452,10]
[356770848,1743148249001,-500.0,0.0003452,10]
[356770849,1743148249010,-517.23,0.0003452,10]
[356770850,1743148249020,-1079.22,0.0003452,10]
[356770851,1743148249029,-962.86,0.0003452,10]
[356770852,1743148249038,-1692.67,0.0003452,10]
[356770853,1743148249047,-1528.73,0.0003452,10]
[356770854,1743148249057,-889.71,0.0003452,10]
[356770855,1743148249066,-617.52,0.0003452,10]
[356770856,1743148249076,-706.65,0.0003452,10]
[356770857,1743148249085,-1543.72,0.0003452,10]
[356770858,1743148249094,-527.98632638,0.0003452,10]
[356770859,1743148249104,-620.82,0.0003452,10]
[356770860,1743148249114,-1207.46,0.0003452,10]
[356770861,1743148249124,-500.0,0.0003452,10]
[356770862,1743148249133,-500.0,0.0003452,10]
[356770863,1743148249143,-500.0,0.0003452,10]
[356770864,1743148249153,-558.75,0.0003452,10]
[356770865,1743148249162,-500.0,0.0003452,10]
[356770866,1743148249171,-27126.18,0.0003452,10]
[356770867,1743148249181,-823.6,0.0003452,10]
[356770868,1743148249190,-696.75,0.0003452,10]
[356770869,1743148249199,-5346.95,0.0003452,10]
[356770870,1743148249208,-3646.36,0.0003452,10]
[356770871,1743148249217,-500.0,0.0003452,10]
[356770872,1743148249226,-1237.24,0.0003452,10]
[356770873,1743148249235,-1767.16,0.0003452,10]
[356770874,1743148249250,-155.24558736,0.0003452,10]
[356770875,1743148249260,-1531.36,0.0003452,10]
[356770876,1743148249270,-14273.85,0.0003452,10]
[356770877,1743148249280,-667.34,0.0003452,10]
[356770878,1743148249290,-500.0,0.0003452,10]
[356770879,1743148249300,-11632.1,0.0003452,10]
[356770880,1743148249309,-500.0,0.0003452,10]
[356770881,1743148249319,-604.27,0.0003452,10]
[356770882,1743148249330,-500.0,0.0003452,10]
[356770883,1743148249339,-1041.99,0.0003452,10]
[356770884,1743148249349,-500.0,0.0003452,10]
[356770885,1743148249360,-1456.73,0.0003452,10]
[356770886,1743148249370,-2005.28,0.0003452,10]
[356770887,1743148249379,-522.2,0.0003452,10]
[356770888,1743148249389,-500.0,0.0003452,10]
[356770889,1743148249399,-2940.55,0.0003452,10]
[356770890,1743148249519,-8065.85,0.0003452,10]
[356770891,1743148249541,-2358.14,0.0003452,10]
[356770892,1743148249550,-621.17143787,0.0003452,10]
[356770893,1743148249560,-500.0,0.0003452,10]
[356770894,1743148249570,-276188.93,0.0003452,7]
[356770895,1743148249580,-2793.66,0.0003452,10]
[356770896,1743148249589,-1542.3,0.0003452,10]
[356770897,1743148249600,-500.0,0.0003452,10]
[356770898,1743148249610,-8637.09,0.0003452,10]
[356770899,1743148249619,-500.0,0.0003452,10]
[356770900,1743148249629,-500.0,0.0003452,10]
[356770901,1743148249638,-721.56,0.0003452,10]
[356770902,1743148249648,-3378.53,0.0003452,10]
[356770903,1743148249658,-709.52,0.0003452,10]
[356770904,1743148249667,-500.0,0.0003452,10]
[356770905,1743148249676,-288.11249857,0.0003452,10]
[356770906,1743148249686,-1261.24,0.0003452,10]
[356770907,1743148249696,-1355.09,0.0003452,10]
[356770908,1743148249705,-8046.81,0.0003452,10]
[356770909,1743148249715,-674.41,0.0003452,10]
[356770910,1743148249724,-526.54,0.0003452,10]
[356770911,1743148249734,-715.64,0.0003452,10]
[356770912,1743148249744,-500.0,0.0003452,10]
[356770913,1743148249753,-500.0,0.0003452,10]
[356770914,1743148249763,-884.76,0.0003452,10]
[356770915,1743148249773,-500.0,0.0003452,10]
[356770916,1743148249783,-500.0,0.0003452,10]
[356770917,1743148249792,-500.0,0.0003452,10]
[356770918,1743148249802,-500.0,0.0003452,10]
[356770919,1743148249811,-648.54,0.0003452,10]
[356770920,1743148249821,-3073.45,0.0003452,10]
[356770921,1743148249830,-500.0,0.0003452,10]
[356770922,1743148249839,-584.14,0.0003452,10]
[356770923,1743148249849,-2026.45,0.0003452,10]
[356770924,1743148249858,-500.0,0.0003452,10]
[356770925,1743148249867,-500.0,0.0003452,10]
[356770926,1743148249876,-6878.21,0.0003452,10]
[356770927,1743148249886,-501.61,0.0003452,10]
[356770928,1743148249895,-1745.81,0.0003452,10]
[356770929,1743148249904,-497.23148292,0.0003452,10]
[356770930,1743148249914,-425.90113106,0.0003452,10]
[356770931,1743148249923,-500.0,0.0003452,10]
[356770932,1743148249933,-500.0,0.0003452,10]
[356770933,1743148249942,-601.49146326,0.0003452,10]
[356770934,1743148249951,-217.15233878,0.00034524,2]
[356770935,1743148249961,-500.0,0.00034543,10]
[356770936,1743148249970,-546.57911377,0.00034543,10]
[356770937,1743148249979,-500.0,0.00034543,10]
[356770938,1743148249988,-447.41361228,0.00034543,10]
[356770939,1743148249997,-503.8135965,0.00034543,10]
[356770940,1743148250007,-500.0,0.00034543,10]
[356770941,1743148250016,-500.0,0.00034543,10]
[356770942,1743148250025,-500.0,0.00034543,10]
[356770943,1743148250034,-500.0,0.00034543,10]
[356770944,1743148250044,-500.0,0.00034543,5]
[356770945,1743148250053,-500.0,0.00034543,10]
[356770946,1743148250062,-558.35,0.00034543,10]
[356770947,1743148250071,-665.56,0.00034543,10]
[356770948,1743148250080,-500.0,0.00034543,10]
[356770949,1743148250089,-535.79292357,0.00034543,10]
[356770950,1743148250099,-500.0,0.00034543,10]
[356770951,1743148250108,-500.0,0.00034543,10]
[356770952,1743148250117,-500.0,0.00034543,10]
[356770953,1743148250126,-500.0,0.00034543,10]
[356770954,1743148250135,-500.0,0.00034543,10]
[356770955,1743148250145,-500.0,0.00034543,10]
[356770956,1743148250154,-500.0,0.00034543,10]
[356770957,1743148250163,-500.0,0.00034543,10]
[356770958,1743148250172,-500.0,0.00034543,10]
[356770959,1743148250182,-555.51707002,0.00034543,10]
[356770960,1743148250191,-500.0,0.00034543,10]
[356770961,1743148250200,-514.25682896,0.00034543,10]
[356770962,1743148250209,-542.42040646,0.00034543,10]
[356770963,1743148250218,-500.0,0.00034543,10]
[356770964,1743148250227,-500.0,0.00034543,10]
[356770965,1743148250236,-496.00256636,0.00034543,10]
[356770966,1743148250245,-500.0,0.00034543,10]
[356770967,1743148250256,-508.5220682,0.00034543,10]
[356770968,1743148250265,-500.0,0.00034543,10]
[356770969,1743148250274,-506.11314251,0.00034543,10]
[356770970,1743148250283,-1525.48,0.00034543,10]
[356770971,1743148250294,-505.1115463,0.00034543,10]
[356770972,1743148250303,-506.47454258,0.00034543,10]
[356770973,1743148250312,-500.0,0.00034543,10]
[356770974,1743148250322,-500.0,0.00034543,10]
[356770975,1743148250332,-500.0,0.00034543,10]
[356770976,1743148250341,-500.0,0.00034543,10]
[356770977,1743148250350,-1020.62,0.00034543,10]
[356770978,1743148250359,-500.0,0.00034543,10]
[356770979,1743148250368,-1109.4,0.00034543,10]
[356770980,1743148250376,-365.38333453,0.00034543,10]
[356770981,1743148250385,-602.9,0.00034543,10]
[356770982,1743148250395,-536.7948232,0.00034543,10]
[356770983,1743148250404,-563.6,0.00034543,10]
[356770984,1743148250414,-500.0,0.00034543,10]
[356770985,1743148250423,-561.25,0.00034543,10]
[356770986,1743148250432,-500.0,0.00034543,10]
[356770987,1743148250442,-542.77787782,0.00034543,10]
[356770988,1743148250451,-500.0,0.00034543,10]
[356770989,1743148250460,-500.0,0.00034543,10]
[356770990,1743148250469,-1272.41,0.00034543,10]
[356770991,1743148250479,-500.0,0.00034543,10]
[356770992,1743148250488,-500.0,0.00034543,10]
[356770993,1743148250497,-698.17,0.00034543,10]
[356770994,1743148250507,-500.0,0.00034543,10]
[356770995,1743148250516,-1144.77,0.00034543,10]
[356770996,1743148250526,-527.36249341,0.00034543,10]
[356770997,1743148250535,-500.0,0.00034543,10]
[356770998,1743148250545,-1191.0,0.00034543,10]
[356770999,1743148250554,-500.0,0.00034543,10]
[356771000,1743148250565,-500.0,0.00034543,10]
[356771001,1743148250576,-500.0,0.00034543,10]